fUSD/lending_fUSD_20250911
["ID","MTS","AMOUNT","RATE_DAILY","PERIOD"]
[384923066,1757627470016,-162.521225,0.00027671,7]
[384923067,1757627470025,-305.591933,0.00027671,7]
[384923068,1757627470034,-1409.6,0.00027671,7]
[384923069,1757627470044,-151.0,0.00027671,7]
[384923070,1757627470053,-162.521225,0.00027671,7]
[384923071,1757627470063,-305.591933,0.00027671,7]
[384923072,1757627470072,-162.521229,0.00027671,7]
[384923073,1757627470082,-2621.3,0.00027671,7]
[384923074,1757627470091,-151.0,0.00027671,7]
[384923075,1757627470101,-305.591933,0.00027671,7]
[384923076,1757627470111,-151.0,0.00027671,7]
[384923077,1757627470120,-305.591933,0.00027671,7]
[384923078,1757627470129,-1935.52,0.00027671,7]
[384923079,1757627470139,-151.0,0.00027671,7]
[384923080,1757627470148,-305.591933,0.00027671,7]
[384923081,1757627470158,-406.551398,0.00027671,7]
[384923082,1757627470167,-406.551398,0.00027671,7]
[384923083,1757627470177,-151.0,0.00027671,7]
[384923084,1757627470187,-305.591933,0.00027671,7]
[384923085,1757627470196,-400.0,0.00027671,7]
[384923086,1757627470206,-406.551398,0.00027671,7]
[384923087,1757627470216,-792.93,0.00027671,7]
[384923088,1757627470226,-175.563371,0.00027671,7]
[384923089,1757627470236,-305.591933,0.00027671,7]
[384923090,1757627470245,-1641.57,0.00027671,7]
[384923091,1757627470255,-305.591933,0.00027671,7]
[384923092,1757627470265,-151.0,0.00027671,7]
[384923093,1757627470274,-187.205689,0.00027671,7]
[384923094,1757627470284,-406.551398,0.00027671,7]
[384923095,1757627470293,-400.0,0.00027671,7]
[384923096,1757627470305,-406.551398,0.00027671,7]
[384923097,1757627470315,-305.591933,0.00027671,7]
[384923098,1757627470325,-406.551398,0.00027671,7]
[384923099,1757627470335,-2511.53,0.00027671,7]
[384923100,1757627470345,-305.591933,0.00027671,7]
[384923101,1757627470355,-305.591935,0.00027671,7]
[384923102,1757627470365,-406.551398,0.00027671,7]
[384923103,1757627470374,-400.0,0.00027671,7]
[384923104,1757627470384,-167.458312,0.00027671,7]
[384923105,1757627470394,-406.551398,0.00027671,7]
[384923106,1757627470403,-167.458312,0.00027671,7]
[384923107,1757627470413,-406.551398,0.00027671,7]
[384923108,1757627470422,-167.458312,0.00027671,7]
[384923109,1757627470432,-400.0,0.00027671,7]
[384923110,1757627470441,-415.19,0.00027671,7]
[384923111,1757627470450,-400.0,0.00027671,7]
[384923112,1757627470460,-167.458312,0.00027671,7]
[384923113,1757627470469,-406.551398,0.00027671,7]
[384923114,1757627470479,-400.0,0.00027671,7]
[384923115,1757627470489,-406.551398,0.00027671,7]
[384923116,1757627470498,-935.63,0.00027671,7]
[384923117,1757627470507,-167.458312,0.00027671,7]
[384923118,1757627470516,-1999.25,0.00027671,7]
[384923119,1757627470526,-406.551403,0.00027671,7]
[384923120,1757627470535,-400.0,0.00027671,7]
[384923121,1757627470544,-167.458312,0.00027671,7]
[384923122,1757627470553,-400.0,0.00027671,7]
[384923123,1757627470562,-400.0,0.00027671,7]
[384923124,1757627470571,-167.458312,0.00027671,7]
[384923125,1757627470581,-1937.06,0.00027671,7]
[384923126,1757627470590,-167.458312,0.00027671,7]
[384923127,1757627470599,-561.05,0.00027671,7]
[384923128,1757627470608,-167.458312,0.00027671,7]
[384923129,1757627470618,-622.55,0.00027671,7]
[384923130,1757627470627,-605.95,0.00027671,7]
[384923131,1757627470636,-625.67,0.00027671,7]
[384923132,1757627470645,-151.0,0.00027671,7]
[384923133,1757627470654,-2434.87,0.00027671,7]
[384923134,1757627470663,-167.458312,0.00027671,7]
[384923135,1757627470673,-167.458312,0.00027671,7]
[384923136,1757627470682,-167.458306,0.00027671,7]
[384923137,1757627470691,-1967.02,0.00027671,7]
[384923138,1757627470702,-400.0,0.00027671,7]
[384923139,1757627470712,-2064.83,0.00027671,7]
[384923140,1757627470721,-5081.16,0.00027671,7]
[384923141,1757627470730,-283.589657,0.00027671,7]
[384923142,1757627470739,-283.589657,0.00027671,7]
[384923143,1757627470748,-283.589657,0.00027671,7]
[384923144,1757627470757,-414.94623501,0.00027671,7]
[384923145,1757627470766,-400.0,0.00027671,7]
[384923146,1757627470775,-2357.52,0.00027671,7]
[384923147,1757627470784,-283.589657,0.00027671,7]
[384923148,1757627470794,-1918.79,0.00027671,7]
[384923149,1757627470803,-283.589657,0.00027671,7]
[384923150,1757627470812,-688.97,0.00027671,7]
[384923151,1757627470821,-283.589657,0.00027671,7]
[384923152,1757627470830,-2563.41,0.00027671,7]
[384923153,1757627470839,-283.589657,0.00027671,7]
[384923154,1757627470848,-400.0,0.00027671,7]
[384923155,1757627470857,-283.589657,0.00027671,7]
[384923156,1757627470866,-283.589657,0.00027671,7]
[384923157,1757627470876,-400.0,0.00027671,7]
[384923158,1757627470885,-1782.99,0.00027671,7]
[384923159,1757627470895,-283.589657,0.00027671,7]
[384923160,1757627470904,-1378.05,0.00027671,7]
[384923161,1757627470913,-283.589657,0.00027671,7]
[384923162,1757627470922,-400.0,0.00027671,7]
[384923163,1757627470931,-2353.03,0.00027671,7]
[384923164,1757627470940,-752.99,0.00027671,7]
[384923165,1757627470950,-283.589664,0.00027671,7]
[384923166,1757627470960,-1193.85,0.00027671,7]
[384923167,1757627470969,-400.0,0.00027671,7]
[384923168,1757627470979,-1178.69,0.00027671,7]
[384923169,1757627470989,-1935.24,0.00027671,7]
[384923170,1757627470998,-400.0,0.00027671,7]
[384923171,1757627471007,-1221.61,0.00027671,7]
[384923172,1757627471016,-400.0,0.00027671,7]
[384923173,1757627471026,-429.41,0.00027671,7]
[384923174,1757627471037,-459.96,0.00027671,7]
[384923175,1757627471047,-400.0,0.00027671,7]
[384923176,1757627471058,-400.0,0.00027671,7]
[384923177,1757627471068,-2252.22,0.00027671,7]
[384923178,1757627471077,-735.02,0.00027671,7]
[384923179,1757627471086,-1279.89,0.00027671,7]
[384923180,1757627471096,-400.0,0.00027671,7]
[384923181,1757627471106,-400.0,0.00027671,7]
[384923182,1757627471115,-400.0,0.00027671,7]
[384923183,1757627471125,-2407.5,0.00027671,7]
[384923184,1757627471134,-2161.65,0.00027671,7]
[384923185,1757627471143,-1425.68,0.00027671,7]
[384923186,1757627471153,-1362.92,0.00027671,7]
[384923187,1757627471163,-400.0,0.00027671,7]
[384923188,1757627471173,-1095.6,0.00027671,7]
[384923189,1757627471183,-151.0,0.00027671,7]
[384923190,1757627471192,-2476.85,0.00027671,7]
[384923191,1757627471202,-151.0,0.00027671,7]
[384923192,1757627471212,-1991.02,0.00027671,7]
[384923193,1757627471222,-151.0,0.00027671,7]
[384923194,1757627471231,-2430.43,0.00027671,7]
[384923195,1757627471241,-400.0,0.00027671,7]
[384923196,1757627471250,-400.0,0.00027671,7]
[384923197,1757627471260,-400.0,0.00027671,7]
[384923198,1757627471269,-400.0,0.00027671,7]
[384923199,1757627471278,-151.0,0.00027671,7]
[384923200,1757627471288,-465.81,0.00027671,7]
[384923201,1757627471297,-151.0,0.00027671,7]
[384923202,1757627471311,-151.0,0.00027671,7]
[384923203,1757627471322,-400.0,0.00027671,7]
[384923204,1757627471332,-153.458131,0.00027671,7]
[384923205,1757627471341,-225.03435,0.00027671,7]
[384923206,1757627471350,-492.392551,0.00027671,7]
[384923207,1757627471360,-492.392551,0.00027671,7]
[384923208,1757627471370,-492.392551,0.00027671,7]
[384923209,1757627471379,-2085.01,0.00027671,7]
[384923210,1757627471389,-522.472943,0.00027671,7]
[384923211,1757627471398,-492.392551,0.00027671,7]
[384923212,1757627471408,-2781.72,0.00027671,7]
[384923213,1757627471417,-1977.7,0.00027671,7]
[384923214,1757627471427,-522.472943,0.00027671,7]
[384923215,1757627471779,-522.472943,0.00027671,7]
[384923216,1757627471789,-400.0,0.00027671,7]
[384923217,1757627471798,-492.392551,0.00027671,7]
[384923218,1757627471808,-2696.49,0.00027671,7]
[384923219,1757627471817,-400.0,0.00027671,7]
[384923220,1757627471826,-272.196604,0.00027671,7]
[384923221,1757627471835,-492.392551,0.00027671,7]
[384923222,1757627471845,-522.472943,0.00027671,7]
[384923223,1757627471855,-272.196604,0.00027671,7]
[384923224,1757627471865,-430.58,0.00027671,7]
[384923225,1757627471874,-3938.86,0.00027671,7]
[384923226,1757627471883,-272.196604,0.00027671,7]
[384923227,1757627471892,-522.472943,0.00027671,7]
[384923228,1757627471902,-492.392551,0.00027671,7]
[384923229,1757627471911,-522.472943,0.00027671,7]
[384923230,1757627471920,-2712.62,0.00027671,7]
[384923231,1757627471930,-492.392551,0.00027671,7]
[384923232,1757627471939,-272.196604,0.00027671,7]
[384923233,1757627471949,-492.392551,0.00027671,7]
[384923234,1757627471959,-272.196604,0.00027671,7]
[384923235,1757627471969,-400.0,0.00027671,7]
[384923236,1757627471979,-522.472943,0.00027671,7]
[384923237,1757627471989,-4392.91,0.00027671,7]
[384923238,1757627471999,-272.196604,0.00027671,7]
[384923239,1757627472008,-400.0,0.00027671,7]
[384923240,1757627472019,-522.472943,0.00027671,7]
[384923241,1757627472031,-492.392551,0.00027671,7]
[384923242,1757627472041,-522.472943,0.00027671,7]
[384923243,1757627472051,-151.0,0.00027671,7]
[384923244,1757627472060,-400.0,0.00027671,7]
[384923245,1757627472070,-492.392551,0.00027671,7]
[384923246,1757627472080,-1492.88,0.00027671,7]
[384923247,1757627472089,-151.0,0.00027671,7]
[384923248,1757627472101,-272.196604,0.00027671,7]
[384923249,1757627472112,-400.0,0.00027671,7]
[384923250,1757627472122,-1464.34,0.00027671,7]
[384923251,1757627472131,-151.0,0.00027671,7]
[384923252,1757627472141,-492.392552,0.00027671,7]
[384923253,1757627472150,-522.472943,0.00027671,7]
[384923254,1757627472160,-272.196604,0.00027671,7]
[384923255,1757627472169,-522.472943,0.00027671,7]
[384923256,1757627472179,-272.196604,0.00027671,7]
[384923257,1757627472189,-400.0,0.00027671,7]
[384923258,1757627472198,-522.472935,0.00027671,7]
[384923259,1757627472208,-151.0,0.00027671,7]
[384923260,1757627472217,-400.0,0.00027671,7]
[384923261,1757627472227,-272.196604,0.00027671,7]
[384923262,1757627472237,-400.0,0.00027671,7]
[384923263,1757627472247,-151.0,0.00027671,7]
[384923264,1757627472257,-400.0,0.00027671,7]
[384923265,1757627472266,-591.66,0.00027671,7]
[384923266,1757627472276,-272.196604,0.00027671,7]
[384923267,1757627472286,-151.0,0.00027671,7]
[384923268,1757627472295,-272.196611,0.00027671,7]
[384923269,1757627472307,-400.0,0.00027671,7]
[384923270,1757627472317,-400.0,0.00027671,7]
[384923271,1757627472327,-151.0,0.00027671,7]
[384923272,1757627472337,-400.0,0.00027671,7]
[384923273,1757627472347,-151.0,0.00027671,7]
[384923274,1757627472357,-666.94,0.00027671,7]
[384923275,1757627472366,-151.0,0.00027671,7]
[384923276,1757627472376,-151.0,0.00027671,7]
[384923277,1757627472386,-151.0,0.00027671,7]
[384923278,1757627472397,-400.0,0.00027671,7]
[384923279,1757627472406,-151.0,0.00027671,7]
[384923280,1757627472416,-1806.44,0.00027671,7]
[384923281,1757627472426,-252.34847,0.00027671,7]
[384923282,1757627472436,-3486.94,0.00027671,7]
[384923283,1757627472446,-400.0,0.00027671,7]
[384923284,1757627472456,-151.0,0.00027671,7]
[384923285,1757627472467,-1981.45,0.00027671,7]
[384923286,1757627472476,-151.0,0.00027671,7]
[384923287,1757627472487,-3388.27,0.00027671,7]
[384923288,1757627472497,-402.9924054,0.00027671,7]
[384923289,1757627472507,-2436.65,0.00027671,7]
[384923290,1757627472516,-406.24,0.00027671,7]
[384923291,1757627472526,-1709.311524,0.00027671,7]
[384923292,1757627472535,-881.67,0.00027671,7]
[384923293,1757627472545,-400.0,0.00027671,7]
[384923294,1757627472554,-1709.311524,0.00027671,7]
[384923295,1757627472563,-400.0,0.00027671,7]
[384923296,1757627472573,-1709.311524,0.00027671,7]
[384923297,1757627472582,-1172.06,0.00027671,7]
[384923298,1757627472592,-780.5,0.00027671,7]
[384923299,1757627472601,-554.15,0.00027671,7]
[384923300,1757627472611,-400.0,0.00027671,7]
[384923301,1757627472621,-4294.22,0.00027671,7]
[384923302,1757627472631,-1709.311524,0.00027671,7]
[384923303,1757627472641,-2452.85,0.00027671,7]
[384923304,1757627472652,-400.0,0.00027671,7]
[384923305,1757627472662,-1709.311524,0.00027671,7]
[384923306,1757627472672,-1709.311524,0.00027671,7]
[384923307,1757627472681,-2234.85,0.00027671,7]
[384923308,1757627472690,-438.53,0.00027671,7]
[384923309,1757627472700,-151.0,0.00027671,7]
[384923310,1757627472709,-1709.311524,0.00027671,7]
[384923311,1757627472719,-151.0,0.00027671,7]
[384923312,1757627472730,-604.66,0.00027671,7]
[384923313,1757627472739,-1709.311524,0.00027671,7]
[384923314,1757627472751,-400.0,0.00027671,7]
[384923315,1757627472763,-151.0,0.00027671,7]
[384923316,1757627472773,-1709.311524,0.00027671,7]
[384923317,1757627472782,-151.0,0.00027671,7]
[384923318,1757627472793,-151.0,0.00027671,7]
[384923319,1757627472803,-400.0,0.00027671,7]
[384923320,1757627472812,-489.84,0.00027671,7]
[384923321,1757627472825,-151.0,0.00027671,7]
[384923322,1757627472837,-151.0,0.00027671,7]
[384923323,1757627472846,-151.0,0.00027671,7]
[384923324,1757627472857,-151.0,0.00027671,7]
[384923325,1757627472866,-1709.311524,0.00027671,7]
[384923326,1757627472875,-151.0,0.00027671,7]
[384923327,1757627472885,-151.0,0.00027671,7]
[384923328,1757627472894,-1709.311524,0.00027671,7]
[384923329,1757627472903,-151.0,0.00027671,7]
[384923330,1757627472913,-1709.311519,0.00027671,7]
[384923331,1757627472922,-534.25,0.00027671,7]
[384923332,1757627472932,-400.0,0.00027671,7]
[384923333,1757627472944,-2886.24,0.00027671,7]
[384923334,1757627472954,-3147.12,0.00027671,7]
[384923335,1757627472964,-151.0,0.00027671,7]
[384923336,1757627472974,-151.0,0.00027671,7]
[384923337,1757627472983,-151.0,0.00027671,7]
[384923338,1757627472992,-400.0,0.00027671,7]
[384923339,1757627473003,-151.0,0.00027671,7]
[384923340,1757627473012,-151.0,0.00027671,7]
[384923341,1757627473021,-400.0,0.00027671,7]
[384923342,1757627473031,-151.0,0.00027671,7]
[384923343,1757627473040,-400.0,0.00027671,7]
[384923344,1757627473049,-151.0,0.00027671,7]
[384923345,1757627473059,-151.0,0.00027671,7]
[384923346,1757627473068,-400.0,0.00027671,7]
[384923347,1757627473078,-151.0,0.00027671,7]
[384923348,1757627473087,-151.0,0.00027671,7]
[384923349,1757627473097,-372.979823,0.00027671,7]
[384923350,1757627473106,-2500.66,0.00027671,7]
[384923351,1757627473116,-151.0,0.00027671,7]
[384923352,1757627473125,-151.0,0.00027671,7]
[384923353,1757627473135,-372.979823,0.00027671,7]
[384923354,1757627473144,-151.0,0.00027671,7]
[384923355,1757627473155,-151.0,0.00027671,7]
[384923356,1757627473164,-1752.06,0.00027671,7]
[384923357,1757627473174,-372.979823,0.00027671,7]
[384923358,1757627473183,-151.0,0.00027671,7]
[384923359,1757627473193,-153.503846,0.00027671,7]
[384923360,1757627473203,-151.0,0.00027671,7]
[384923361,1757627473213,-372.979823,0.00027671,7]
[384923362,1757627473223,-151.0,0.00027671,7]
[384923363,1757627473232,-372.979823,0.00027671,7]
[384923364,1757627473242,-151.0,0.00027671,7]
[384923365,1757627473252,-151.0,0.00027671,7]
[384923366,1757627473262,-372.979823,0.00027671,7]
[384923367,1757627473271,-400.0,0.00027671,7]
[384923368,1757627473281,-256.7,0.00027671,7]
[384923369,1757627473291,-3110.75,0.00027671,7]
[384923370,1757627473303,-1536.25,0.00027671,7]
[384923371,1757627473313,-151.0,0.00027671,7]
[384923372,1757627473323,-3514.52,0.00027671,7]
[384923373,1757627473333,-372.979823,0.00027671,7]
[384923374,1757627473343,-151.0,0.00027671,7]
[384923375,1757627473353,-851.92,0.00027671,7]
[384923376,1757627473363,-1998.85,0.00027671,7]
[384923377,1757627473372,-372.979823,0.00027671,7]
[384923378,1757627473382,-151.0,0.00027671,7]
[384923379,1757627473392,-372.979823,0.00027671,7]
[384923380,1757627473402,-1639.17,0.00027671,7]
[384923381,1757627473411,-2407.64,0.00027671,7]
[384923382,1757627473421,-400.0,0.00027671,7]
[384923383,1757627473430,-1046.34,0.00027671,7]
[384923384,1757627473440,-372.979823,0.00027671,7]
[384923385,1757627473450,-372.979823,0.00027671,7]
[384923386,1757627473459,-1220.02,0.00027671,7]
[384923387,1757627473469,-372.979824,0.00027671,7]
[384923388,1757627473478,-151.0,0.00027671,7]
[384923389,1757627473487,-151.0,0.00027671,7]
[384923390,1757627473497,-151.0,0.00027671,7]
[384923391,1757627473507,-151.0,0.00027671,7]
[384923392,1757627473516,-151.0,0.00027671,7]
[384923393,1757627473526,-151.0,0.00027671,7]
[384923394,1757627473535,-151.0,0.00027671,7]
[384923395,1757627473545,-161.57098,0.00027671,7]
[384923396,1757627473554,-482.39,0.00027671,7]
[384923397,1757627473563,-2770.33,0.00027671,7]
[384923398,1757627473572,-1846.46,0.00027671,7]
[384923399,1757627473582,-436.15,0.00027671,7]
[384923400,1757627473591,-400.0,0.00027671,7]
[384923401,1757627473600,-400.0,0.00027671,7]
[384923402,1757627473610,-400.0,0.00027671,7]
[384923403,1757627473619,-400.0,0.00027671,7]
[384923404,1757627473628,-1957.68,0.00027671,7]
[384923405,1757627473637,-2184.88,0.00027671,7]
[384923406,1757627473647,-1730.33,0.00027671,7]
[384923407,1757627473655,-1786.28,0.00027671,7]
[384923408,1757627473665,-1265.01,0.00027671,7]
[384923409,1757627473674,-407.19,0.00027671,7]
[384923410,1757627473683,-2703.11,0.00027671,7]
[384923411,1757627473693,-400.0,0.00027671,7]
[384923412,1757627473702,-688.3,0.00027671,7]
[384923413,1757627473711,-2568.73,0.00027671,7]
[384923414,1757627473722,-678.34,0.00027671,7]
[384923415,1757627473732,-151.0,0.00027671,7]
[384923416,1757627473742,-151.0,0.00027671,7]
[384923417,1757627473752,-151.0,0.00027671,7]
[384923418,1757627473763,-3106.86,0.00027671,7]
[384923419,1757627473773,-1591.84,0.00027671,7]
[384923420,1757627473783,-400.0,0.00027671,7]
[384923421,1757627473796,-151.0,0.00027671,7]
[384923422,1757627473806,-423.35,0.00027671,7]
[384923423,1757627473816,-151.0,0.00027671,7]
[384923424,1757627473826,-2512.36,0.00027671,7]
[384923425,1757627473837,-151.0,0.00027671,7]
[384923426,1757627473848,-400.0,0.00027671,7]
[384923427,1757627473858,-151.0,0.00027671,7]
[384923428,1757627473867,-400.0,0.00027671,7]
[384923429,1757627473877,-151.0,0.00027671,7]
[384923430,1757627473886,-2358.62,0.00027671,7]
[384923431,1757627473895,-151.0,0.00027671,7]
[384923432,1757627473904,-655.76,0.00027671,7]
[384923433,1757627473914,-288.05682,0.00027671,7]
[384923434,1757627473923,-400.0,0.00027671,7]
[384923435,1757627473932,-655.88,0.00027671,7]
[384923436,1757627473941,-358.9143,0.00027671,7]
[384923437,1757627473950,-400.0,0.00027671,7]
[384923438,1757627473959,-358.9143,0.00027671,7]
[384923439,1757627473968,-1989.93,0.00027671,7]
[384923440,1757627473977,-358.9143,0.00027671,7]
[384923441,1757627473987,-400.0,0.00027671,7]
[384923442,1757627473996,-6625.15,0.00027671,7]
[384923443,1757627474005,-358.9143,0.00027671,7]
[384923444,1757627474014,-1565.73,0.00027671,7]
[384923445,1757627474023,-358.9143,0.00027671,7]
[384923446,1757627474032,-400.0,0.00027671,7]
[384923447,1757627474042,-358.9143,0.00027671,7]
[384923448,1757627474051,-2433.07,0.00027671,7]
[384923449,1757627474059,-358.9143,0.00027671,7]
[384923450,1757627474070,-400.0,0.00027671,7]
[384923451,1757627474079,-358.9143,0.00027671,7]
[384923452,1757627474088,-358.9143,0.00027671,7]
[384923453,1757627474097,-1949.62,0.00027671,7]
[384923454,1757627474107,-2320.6,0.00027671,7]
[384923455,1757627474116,-400.0,0.00027671,7]
[384923456,1757627474125,-358.9143,0.00027671,7]
[384923457,1757627474230,-2218.78,0.00027671,7]
[384923458,1757627474241,-1700.41,0.00027671,7]
[384923459,1757627474250,-358.9143,0.00027671,7]
[384923460,1757627474260,-3743.48,0.00027671,7]
[384923461,1757627474269,-358.914306,0.00027671,7]
[384923462,1757627474279,-581.88,0.00027671,7]
[384923463,1757627474288,-400.0,0.00027671,7]
[384923464,1757627474297,-601.83,0.00027671,7]
[384923465,1757627474310,-400.0,0.00027671,7]
[384923466,1757627474319,-316.41616135,0.00027671,7]
[384923467,1757627474329,-400.0,0.00027671,7]
[384923468,1757627474339,-2249.08,0.00027671,7]
[384923469,1757627474349,-2332.54,0.00027671,7]
[384923470,1757627474358,-400.0,0.00027671,7]
[384923471,1757627474368,-726.15,0.00027671,7]
[384923472,1757627474377,-2742.88,0.00027671,7]
[384923473,1757627474386,-400.0,0.00027671,7]
[384923474,1757627474395,-400.0,0.00027671,7]
[384923475,1757627474404,-2125.99,0.00027671,7]
[384923476,1757627474413,-877.79,0.00027671,7]
[384923477,1757627474422,-400.0,0.00027671,7]
[384923478,1757627474431,-400.0,0.00027671,7]
[384923479,1757627474440,-1691.78,0.00027671,7]
[384923480,1757627474449,-400.0,0.00027671,7]
[384923481,1757627474458,-400.0,0.00027671,7]
[384923482,1757627474467,-2192.92,0.00027671,7]
[384923483,1757627474476,-2438.57,0.00027671,7]
[384923484,1757627474485,-1723.17,0.00027671,7]
[384923485,1757627474494,-2371.58,0.00027671,7]
[384923486,1757627474503,-882.4,0.00027671,7]
[384923487,1757627474512,-400.0,0.00027671,7]
[384923488,1757627474521,-2985.19,0.00027671,7]
[384923489,1757627474531,-151.0,0.00027671,7]
[384923490,1757627474539,-2972.96,0.00027671,7]
[384923491,1757627474549,-151.0,0.00027671,7]
[384923492,1757627474558,-849.58,0.00027671,7]
[384923493,1757627474568,-512.39,0.00027671,7]
[384923494,1757627474577,-151.0,0.00027671,7]
[384923495,1757627474586,-3150.88,0.00027671,7]
[384923496,1757627474596,-472.361503,0.00027671,7]
[384923497,1757627474605,-151.0,0.00027671,7]
[384923498,1757627474614,-472.361503,0.00027671,7]
[384923499,1757627474623,-151.0,0.00027671,7]
[384923500,1757627474632,-400.0,0.00027671,7]
[384923501,1757627474641,-472.361503,0.00027671,7]
[384923502,1757627474650,-151.0,0.00027671,7]
[384923503,1757627474659,-2678.71,0.00027671,7]
[384923504,1757627474668,-1003.52,0.00027671,7]
[384923505,1757627474677,-472.361503,0.00027671,7]
[384923506,1757627474686,-151.0,0.00027671,7]
[384923507,1757627474695,-472.361503,0.00027671,7]
[384923508,1757627474704,-151.0,0.00027671,7]
[384923509,1757627474713,-472.361503,0.00027671,7]
[384923510,1757627474722,-151.0,0.00027671,7]
[384923511,1757627474731,-764.35,0.00027671,7]
[384923512,1757627474740,-472.361503,0.00027671,7]
[384923513,1757627474749,-151.0,0.00027671,7]
[384923514,1757627474758,-472.361503,0.00027671,7]
[384923515,1757627474767,-189.626776,0.00027671,7]
[384923516,1757627474776,-472.361503,0.00027671,7]
[384923517,1757627474785,-1462.94,0.00027671,7]
[384923518,1757627474794,-2234.94,0.00027671,7]
[384923519,1757627474803,-2578.26,0.00027671,7]
[384923520,1757627474812,-400.0,0.00027671,7]
[384923521,1757627474821,-280.91361752,0.00027671,7]
[384923522,1757627474830,-1828.11,0.00027671,7]
[384923523,1757627474839,-472.361503,0.00027671,7]
[384923524,1757627474848,-472.361503,0.00027671,7]
[384923525,1757627474857,-470.08,0.00027671,7]
[384923526,1757627474867,-472.361497,0.00027671,7]
[384923527,1757627474876,-151.0,0.00027671,7]
[384923528,1757627474885,-1307.56,0.00027671,7]
[384923529,1757627474894,-151.0,0.00027671,7]
[384923530,1757627474903,-151.0,0.00027671,7]
[384923531,1757627474912,-400.0,0.00027671,7]
[384923532,1757627474921,-400.0,0.00027671,7]
[384923533,1757627474929,-151.0,0.00027671,7]
[384923534,1757627474938,-1772.99,0.00027671,7]
[384923535,1757627474948,-151.0,0.00027671,7]
[384923536,1757627474958,-151.0,0.00027671,7]
[384923537,1757627474967,-2097.33,0.00027671,7]
[384923538,1757627474976,-151.0,0.00027671,7]
[384923539,1757627474985,-151.0,0.00027671,7]
[384923540,1757627474994,-151.0,0.00027671,7]
[384923541,1757627475003,-151.0,0.00027671,7]
[384923542,1757627475013,-151.0,0.00027671,7]
[384923543,1757627475023,-151.0,0.00027671,7]
[384923544,1757627475033,-933.0,0.00027671,7]
[384923545,1757627475043,-952.28,0.00027671,7]
[384923546,1757627475054,-151.0,0.00027671,7]
[384923547,1757627475065,-1662.68,0.00027671,7]
[384923548,1757627475075,-400.0,0.00027671,7]
[384923549,1757627475085,-151.0,0.00027671,7]
[384923550,1757627475094,-151.0,0.00027671,7]
[384923551,1757627475104,-400.0,0.00027671,7]
[384923552,1757627475114,-151.0,0.00027671,7]
[384923553,1757627475125,-275.13,0.00027671,7]
[384923554,1757627475135,-151.0,0.00027671,7]
[384923555,1757627475145,-610.96,0.00027671,7]
[384923556,1757627475155,-151.0,0.00027671,7]
[384923557,1757627475165,-7841.89,0.00027671,7]
[384923558,1757627475176,-151.0,0.00027671,7]
[384923559,1757627475186,-400.0,0.00027671,7]
[384923560,1757627475195,-151.0,0.00027671,7]
[384923561,1757627475205,-400.0,0.00027671,7]
[384923562,1757627475215,-151.0,0.00027671,7]
[384923563,1757627475228,-400.0,0.00027671,7]
[384923564,1757627475239,-151.0,0.00027671,7]
[384923565,1757627475248,-151.0,0.00027671,7]